Cogmind - Beta 13 @@@ ROGUE MODE // 2024.04.22 @ 20:41:58 Player: arcadio rl Result: Destroyed by as-04362 with Assembled Rifle Performance ------------- Evolutions (0) 0 Regions Visited (3) 600 Robots Destroyed (15) 75 Value Destroyed (308) 308 Prototype IDs (4) 80 Alien Tech Used (0) 0 Bonus (-140) -140 TOTAL SCORE: 923 Bonus ------- Friendly Fire -140 Cogmind --------- Core Integrity 0/250 Matter 300/300 Energy 99/100 System Corruption 0% Temperature Cool (0) Movement Core (50) Location -10/Exiles Parts ------- > --- POWER (1) -------- (None) > --- PROPULSION (2) --- (None) > --- UTILITY (2) ------ Targeting Computer > --- WEAPON (2) ------- Maul > --- INVENTORY (5) ---- Flight Unit Flight Unit Grenade Launcher Maul Maul Peak State ------------ > --- POWER ------------ Ion Engine > --- PROPULSION ------- Aluminum Leg Aluminum Leg > --- UTILITY ---------- Small Storage Unit Core Shielding > --- WEAPON ----------- Assault Rifle Light Assault Rifle > --- INVENTORY -------- Ion Engine Light Treads Light Treads Compact Wheel Compact Wheel Small Laser [Rating: 7] Favorites ----------- Power Light Ion Engine Engine Light Ion Engine Propulsion Flight Unit Leg Aluminum Leg Flight Unit Flight Unit Utility Targeting Computer Storage Small Storage Unit Processor Targeting Computer Protection Core Shielding Weapon Light Assault Rifle Ballistic Gun Light Assault Rifle Launcher Grenade Launcher Impact Weapon Maul Build | -11 -10 -10 -10 ------- Run | Yrd Mat Min Exi Slots Evolved . | . . . . Power . | . . . . Propulsion . | . . . . Utility . | . . . . Weapon . | . . . . Parts Attached 25 | 6 19 . . Power 3 | 1 2 . . Engine 3 | 1 2 . . Core . | . . . . Reactor . | . . . . Propulsion 4 | 2 2 . . Treads . | . . . . Leg 2 | 2 . . . Wheel . | . . . . Hover . | . . . . Flight 2 | . 2 . . Utility 5 | 1 4 . . Device . | . . . . Storage 2 | 1 1 . . Processor 1 | . 1 . . Hackware . | . . . . Protection 2 | . 2 . . Artifact . | . . . . Weapon 13 | 2 11 . . Energy Gun . | . . . . Energy Cannon . | . . . . Ballistic Gun 8 | 2 6 . . Ballistic Cannon . | . . . . Launcher 3 | . 3 . . Special Weapon . | . . . . Impact Weapon 2 | . 2 . . Slashing Weapon . | . . . . Piercing Weapon . | . . . . Special Melee Weapon . | . . . . Unidentified Prototypes . | . . . . Parts Lost 5 | . 1 . 4 Power 2 | . 1 . 1 Propulsion 2 | . . . 2 Utility . | . . . . Weapon 1 | . . . 1 Highest Loss Streak 4 | . 1 . 4 To Critical Strikes . | . . . . Average Slot Usage (%) 90 | . 92 85 77 Engine 12 | . 12 14 11 Leg 4 | . 5 . . Flight 23 | . 22 28 23 Storage 2 | . 3 . . Processor 11 | . 10 14 14 Protection 7 | . 9 . . Ballistic Gun 15 | . 20 . . Impact Weapon 11 | . 6 28 28 Naked Turns . | . . . . Heaviest Build 14 | 13 14 8 8 Greatest Support 20 | 20 20 8 8 Greatest Overweight (x) 3 | . 3 . 1 Average Overweight (x) . | . . . . Largest Inventory Capacity 8 | 8 8 5 5 Average Capacity 5 | 6 5 5 5 Most Carried 8 | 6 8 5 5 Average Carried 4 | 2 5 5 5 Final Capacity 8 | 8 5 5 5 Final Carried 6 | 6 5 5 5 Class Distribution -------------------- 60% | Mutant 39% | Scavenger-Mutant Dominant Class ---------------- Scavenger-Mutant | -10/Materials Mutant | -10/Mines Mutant | -10/Exiles Resources | -11 -10 -10 -10 ----------- Run | Yrd Mat Min Exi Matter Collected 577 | 236 223 118 . Remotely . | . . . . Salvage Created 397 | . 290 95 12 Parts 29 | . 23 6 . Haulers Intercepted . | . . . . Recyclers Shooed . | . . . . Parts Field Recycled . | . . . . Retrieved Matter . | . . . . Parts Self-Destructed . | . . . . Prevented . | . . . . Kills | -11 -10 -10 -10 ------- Run | Yrd Mat Min Exi Combat Hostiles Destroyed 12 | . 10 2 . Melee 1 | . . 1 . Guns 9 | . 9 . . AOE 1 | . 1 . . Classes Destroyed 4 | . 4 . . Worker 2 | . 1 1 . Watcher 1 | . 1 . . Swarmer 6 | . 6 . . Grunt 6 | . 4 2 . Best Kill Streak 4 | . 4 2 . Combat Bots Only 3 | . 3 2 . Max Kills in Single Turn 2 | . 2 1 . Gunslinging . | . . . . Exploded 1 | . 1 . . Melee 1 | . . 1 . Uniques/NPCs Destroyed . | . . . . Combat | -11 -10 -10 -10 -------- Run | Yrd Mat Min Exi Hostile Shots Fired 71 | . 44 3 24 Missed 22 | . 12 1 9 Damage Taken 672 | . 306 20 346 Core 257 | . 104 . 153 Absorbed by Shields . | . . . . Redirected to Shielding 21 | . 21 . . Core Remaining (%) 100 | 100 . . . Volleys Fired 37 | . 37 . . Largest 2 | . 2 . . Hottest 50 | . 50 . . Shots Fired 74 | . 74 . . Gun 70 | . 70 . . Cannon . | . . . . Launcher 4 | . 4 . . Special . | . . . . Kinetic 70 | . 70 . . Thermal . | . . . . Explosive 4 | . 4 . . Electromagnetic . | . . . . Robot Hit Streak 11 | . 11 . . Robot Miss Streak 6 | . 6 . . Penetration Max . | . . . . Secondary Targets . | . . . . Shots Hit Robots 41 | . 37 3 1 Core Hits 22 | . 20 1 1 Critical Kills . | . . . . Critical Parts Destroyed . | . . . . Critical Strikes . | . . . . Melee Attacks 13 | . 7 4 2 Impact 13 | . 7 4 2 Slashing . | . . . . Piercing . | . . . . Sneak Attacks 3 | . 1 2 . Combat Hostiles 1 | . . 1 . Follow-up Attacks . | . . . . Damage Inflicted 797 | . 503 154 140 Guns 311 | . 311 . . Cannons . | . . . . Explosions 98 | . 98 . . Melee 388 | . 94 154 140 Ramming . | . . . . Kinetic 311 | . 311 . . Thermal . | . . . . Explosive 98 | . 98 . . Electromagnetic . | . . . . Impact 388 | . 94 154 140 Slashing . | . . . . Piercing . | . . . . Highest Corruption . | . . . . Average Corruption . | . . . . Corruption Purged . | . . . . Corruption Blocked . | . . . . Overload Shots . | . . . . Overflow Damage 50 | . 10 40 . Projectiles . | . . . . Explosions 10 | . 10 . . Melee 40 | . . 40 . Knockbacks 1 | . . 1 . Impact 1 | . . 1 . Kinetic . | . . . . Secondary . | . . . . Self-Inflicted Damage . | . . . . Shots . | . . . . Rammed . | . . . . Targets Rammed . | . . . . Kicked . | . . . . Crushed . | . . . . Highest Temperature 26 | . 26 . 8 Average Temperature 8 | . 8 . 8 Received Heat Transfer 121 | . 69 12 40 Siege Activations . | . . . . Robots Corrupted . | . . . . Combat Hostiles . | . . . . Parts Fried 1 | . . 1 . Impact Corruptions 2 | . . 2 . Robots Melted . | . . . . Combat Hostiles . | . . . . Parts Melted . | . . . . Heat Transferred . | . . . . Parts Sabotaged . | . . . . Parts Stolen . | . . . . Parts Stripped . | . . . . Power Chain Reactions . | . . . . Alert | -11 -10 -10 -10 ------- Run | Yrd Mat Min Exi Peak Influence 255 | . 255 106 . Initial 15 | . . 15 . Average 114 | . 139 44 . Maximum Alert Level 1 | . 1 . . Low Security (%) 85 | 100 81 100 . Level 1 14 | . 18 . . Level 2 . | . . . . Level 3 . | . . . . Level 4 . | . . . . Level 5 . | . . . . High Security . | . . . . Max Security . | . . . . Squads Dispatched 1 | . 1 . . Investigation . | . . . . Extermination . | . . . . Reinforcement 1 | . 1 . . Assault . | . . . . Garrison . | . . . . Intercept . | . . . . Searches Triggered . | . . . . Construction Impeded . | . . . . Haulers Reinforced . | . . . . Active Scanning Responses . | . . . . Cargo Convoy Interrupts . | . . . . Stealth | -11 -10 -10 -10 --------- Run | Yrd Mat Min Exi Distress Signals 1 | . 1 . . Communications Jammed . | . . . . Distress Signals . | . . . . Times Spotted 35 | . 24 4 7 Peak Tracking Total 10 | . 6 2 10 Tactical Retreats 4 | . 2 1 1 Traps | -11 -10 -10 -10 ------- Run | Yrd Mat Min Exi Traps Triggered . | . . . . Indirectly . | . . . . Trap Hack Attempts . | . . . . Triggered . | . . . . Disarmed . | . . . . Reprogrammed . | . . . . Reused . | . . . . Traps Extracted . | . . . . Installed . | . . . . Triggered . | . . . . Machines | -11 -10 -10 -10 ---------- Run | Yrd Mat Min Exi Machines Disabled . | . . . . Max in Single Turn . | . . . . Machines Repaired . | . . . . Machines Dismantled . | . . . . Machines Sabotaged . | . . . . Overloaded Fab Kills . | . . . . Hacking | -11 -10 -10 -10 --------- Run | Yrd Mat Min Exi Machines Accessed 9 | . 8 1 . Terminals 7 | . 7 . . Fabricators . | . . . . Repair Stations . | . . . . Recycling Units 1 | . 1 . . Scanalyzers . | . . . . Garrison Access . | . . . . Total Hacks 32 | . 31 1 . Successful 18 | . 17 1 . Failed 14 | . 14 . . Catastrophic . | . . . . Database Lockouts . | . . . . Manual 17 | . 17 . . Terminals 29 | . 29 . . Fabricators . | . . . . Repair Stations . | . . . . Recycling Units 2 | . 2 . . Scanalyzers . | . . . . Garrison Access . | . . . . Terminal Hacks 12 | . 11 1 . Robot Analysis 2 | . 2 . . Prototype ID Bank 2 | . 2 . . Open Door 1 | . . 1 . Terminal Index 1 | . 1 . . Alert Level 1 | . 1 . . Locate Traps 1 | . 1 . . Patrol Status 2 | . 2 . . Hauler Manifests 1 | . 1 . . Registered Components 1 | . 1 . . Fabricator Hacks . | . . . . Repair Station Hacks . | . . . . Recycling Unit Hacks 2 | . 2 . . Retrieve Matter 2 | . 2 . . Scanalyzer . | . . . . Garrison Access Hacks . | . . . . Unauthorized Hacks 4 | . 4 . . Terminals 4 | . 4 . . Assimilate 1 | . 1 . . Botnet 2 | . 2 . . Operators 1 | . 1 . . Fabricators . | . . . . Repair Stations . | . . . . Recycling Units . | . . . . Scanalyzers . | . . . . Garrison Access . | . . . . Data Cores Recovered . | . . . . Used . | . . . . Hacking Detections 8 | . 8 . . Full Trace Events 1 | . 1 . . Feedback Events . | . . . . Feedback Blocked . | . . . . Robot Schematics Acquired . | . . . . Robots Built . | . . . . Authchips . | . . . . Time . | . . . . Total Robot Build Rating . | . . . . Part Schematics Acquired . | . . . . Parts Built . | . . . . Authchips . | . . . . Time . | . . . . Total Part Build Rating . | . . . . Parts Repaired . | . . . . Time . | . . . . Parts Recycled . | . . . . Recycled Matter . | . . . . Retrieved Matter . | . . . . Retrieved Components . | . . . . Parts Scanalyzed . | . . . . Part Schematics Acquired . | . . . . Parts Damaged . | . . . . Bothacking | -11 -10 -10 -10 ------------ Run | Yrd Mat Min Exi Used RIF Installer . | . . . . Robots Hacked . | . . . . Non-combat . | . . . . Combat . | . . . . Robot Hacks Applied . | . . . . Relay Couplers Released . | . . . . Fabnet Peak Effective % . | . . . . Robots Rewired . | . . . . Allies Hacked . | . . . . Hacks Repelled . | . . . . Allies | -11 -10 -10 -10 -------- Run | Yrd Mat Min Exi Total Allies 3 | . 1 2 . Largest Group 3 | . 1 3 3 Highest-Rated Group 51 | . 10 51 51 Highest-Rated Ally 31 | . 10 31 31 Total Orders . | . . . . Ally Attacks 1 | . . . 1 Total Damage 2 | . . . 2 Kills . | . . . . Allies Corrupted . | . . . . Allies Melted . | . . . . Intel | -11 -10 -10 -10 ------- Run | Yrd Mat Min Exi Robot Analysis Total 2 | . 2 . . Derelict Logs Recovered 3 | . . 3 . Drone Launches . | . . . . Drone Recoveries . | . . . . Exploration | -11 -10 -10 -10 ------------- Run | Yrd Mat Min Exi Turns Passed 1111 | 68 808 181 54 Spaces Moved 1291 | 48 797 321 125 Core 14 | 5 . . 9 Treads . | . . . . Legs 144 | 43 101 . . Wheels . | . . . . Hover . | . . . . Flight 1133 | . 696 321 116 Fastest Speed 37 | 50 37 37 37 Average Speed 47 | 112 48 37 40 Slowest Speed 280 | 120 280 37 100 Overloaded Moves . | . . . . Propulsion Burnouts . | . . . . Robots Hopped 3 | . 3 . . Cave-ins Triggered . | . . . . Exploration Rate (%) 51 | 5 91 66 44 Regions Visited 3 Branch Regions 2 Pre-discovered Areas 1 | . . 1 . Known Exits Taken . | . . . . Unknown Exits Taken 3 | 1 1 1 . Scrap Searched 1 | . . 1 . Spaces Dug 5 | . 5 . . Terrain Destroyed 9 | . 9 . . Melee 3 | . 3 . . Projectile . | . . . . AOE 6 | . 6 . . Terrain Rammed . | . . . . Walls Destroyed . | . . . . Machines Disabled . | . . . . Actions | -11 -10 -10 -10 --------- Run | Yrd Mat Min Exi Total 1701 | 59 1140 376 126 Wait 311 | . 258 53 . Move 1282 | 47 790 320 125 Hop 3 | . 3 . . Pick Up 13 | 6 7 . . Fast Attach 17 | 6 11 . . Attach . | . . . . Detach 3 | . 3 . . Swap 8 | . 8 . . Drop 18 | . 18 . . Fire 37 | . 37 . . Melee 9 | . 5 3 1 Ram . | . . . . Kick . | . . . . Crush . | . . . . Escape Stasis . | . . . . Rewire . | . . . . Trap . | . . . . Miscellaneous . | . . . . Route ------- -11/Scrapyard -10/Materials (discovered 3 exits: [*Mat x2] / *Min) -10/Mines (discovered 2 exits: [*Mat] / [*Exi]) -10/Exiles History --------- Turn | Location | Event 7 | -11/Scrapyard | Discovered new exit (range 15) 69 | -11/Scrapyard | Entered Materials 527 | -10/Materials | Discovered new exit (range 7) 532 | -10/Materials | Build established: Scavenger-Mutant 666 | -10/Materials | Discovered new exit (range 15) 802 | -10/Materials | Discovered new exit (range 16) 877 | -10/Materials | Entered Mines 877 | -10/Mines | Accompanied by 1 ally 950 | -10/Mines | Learned 2 Materials zone layouts 953 | -10/Mines | Build established: Mutant 953 | -10/Mines | Deemed a non-threat by the Exiles lab entrance 953 | -10/Mines | Discovered new exit (range 5) 991 | -10/Mines | Found the Drone Emporium 1005 | -10/Mines | Learned location of Zion (-6) 1005 | -10/Mines | Discovered new exit (range 5) 1058 | -10/Mines | Entered Exiles 1058 | -10/Exiles | Accompanied by 3 allies 1068 | -10/Exiles | Met 8R-AWN 1074 | -10/Exiles | Met EX-HEX 1081 | -10/Exiles | Attacked by the Exiles 1086 | -10/Exiles | Core integrity fell below 50% 1107 | -10/Exiles | Core integrity fell below 20% 1112 | -10/Exiles | Destroyed by as-04362 with Assembled Rifle Last Messages --------------- The Zionites will tell you those Marauders at the gates are defenses set up by Warlord... Nope, the Imprinter put them there mostly to keep us out! Anyway, I've got to get back to poking and prodding these nasty little guys. Go see BIN. I can't imagine you'll want to stay in our boring little cave for long, and we could use some help with the project in the back. 01080_ Sneak attack on as-45746. 01080_ as-45746 destroyed. 01081_ EXILES: Hostile robot within lab perimeter. Defensive protocols time, folks! 01081_ Machine disabled. 01083_ Assembled Analyzer disabled. 01088_ EX-BIN: "I just want to science!" 01101_ Lgt. Ion Engine destroyed. 01101_ Machine disabled. 01105_ Flight Unit destroyed. 01110_ Hammer destroyed. Map ----- +----------------------------------------------------+ | ????????????????????????????????????????## ??? | | ???????????????????????????????????????? ??? | | ????????????????????????????????????????? ??? | | ?????????????????????????????????????????# #?? | | ?????????????????????????????????????????# #?# | | ?????????????????????????????????????????# #?# | | ?????????????????????????????????????????# #?# | | ?????????????????????????????????????????# #?# | | ????????????????????????????????????????## ### | | ????????????????????????????????????????#" | | ????????????????????????????????????????#" | | ????????????????????????????????????????#" | | ????????????????????????????????????????#" | | ???????????????????????????####?????????#" | | ??????????????????????????? """????????#" | | ???????????????????????????" """#???????## | | ??????????????????????????"" ?????????# | | ?????????????????????????#"" ?????????#" | | ?????????????????????????#"" "#????????#" | | ?????????????????????????? ""?????????#" "" | | ???????????????????????????" "?????????##" ### | | ???????????????????????????# #????????##"" #?? | | ??????????? ###??????### ###?######" #?? | | ??????????" """#####X# %#"###""""""" ##? | | ??????????" """""" " "" ## | | ???????????# @ "" """ " # | | ????????????# a"% " | | ?????????????## a aa | | ??????????????### caa | | ????????????????## | | ?????????????????## | | ??????????????????##" | | ???????????????????#""" """""" | | ???????????????????#" ######""" | | ???????????????????"" ""##????#####"" | | ????????????????????"" """##?????????##" | | ????????????????????" c"""##???????????#" | | ????????????????????" ""#????????????#" | | ???????????????????? ???????????????" | | ????????????????????? ??????????????? | | ??????????????????????? ???????????????? | | ???????????????????????????? ???????????????? | | ?????????????????????????????? ????????????????? | | ????????????????????????????????????????????????? | | ?????????????????????????????????????????????????? | | ?????????????????????????????????????????????????? | | ?????????????????????????????????????????????????? | | ?????????????????????????????????????????????????? | | ?????????????????????????????????????????????????? | | ?????????????????????????????????????????????????? | +----------------------------------------------------+ Best States ------------- Heat Dissipation 25 Energy Generation 10 Energy Capacity 250 Matter Stores 300 Matter Capacity 300 Sight Range 16 Terrain Scan Density 10 Core Shielding 20 Evasion (%) 62 Targeting Accuracy 5 Item Schematics ----------------- None Robot Schematics ------------------ None Fabricated ------------ Nothing Alien Tech Used ----------------- None Achievements -------------- None Challenges ------------ None Game ------ Seed BladePowerWeb Manual? 0 Play Time 00:20:08 Cumulative 121.0 hours Start 2024.04.22 @ 20:22:39 End 2024.04.22 @ 20:41:58 Sessions 1 Manual Loads 0 Difficulty Rogue Special Mode None Game No. 97 Rogue 97 Adventurer 0 Explorer 0 Win Type - Total 0 Types 0/0/0/0/0/0/0/0/0 Lore% 52 Gallery% 53 Achievement% 41 Wizard Run 0 Options --------- Layout 1 ASCII 0 Keyboard 1 Movement Numpad Keybinds 0 Fullscreen 1 Font 24/Smallcaps Map View 50x35 Zoom Use 0% Tactical HUD 1 Map Filters NONE Filters NONE Steam 1 RUN: f724c085-ca93-4be4-bed3-355fecc1708e